[Event "Titled Tuesday Blitz February 21 Early 2023"]
[White "Kornyukov, Alexey"]
[Black "Castillo Pena, Patricia Evarista"]
[WhiteFideId "4150457"]
[BlackFideId "6412106"]
[WhiteElo "2452"]
[BlackElo "1783"]
[Result "1-0"]
[Round "09"]
[TimeControl "180+2"]
[Date "2023.02.21"]
[WhiteClock "0:00:12"]
[BlackClock "0:00:03"]

1. e4 {[%clk 0:02:57]}  c5 {[%clk 0:02:58]} 2. Nf3 {[%clk 0:02:56]}  d6 {[%clk 0:02:56]} 3. c3 {[%clk 0:02:55]}  Nf6 {[%clk 0:02:55]} 4. Be2 {[%clk 0:02:55]}  Nc6 {[%clk 0:02:53]} 5. d4 {[%clk 0:02:54]}  cxd4 {[%clk 0:02:53]} 6. cxd4 {[%clk 0:02:55]}  e6 {[%clk 0:02:53]} 7. O-O {[%clk 0:02:54]}  Be7 {[%clk 0:02:52]} 8. Nc3 {[%clk 0:02:54]}  O-O {[%clk 0:02:52]} 9. Be3 {[%clk 0:02:52]}  b6 {[%clk 0:02:44]} 10. h3 {[%clk 0:02:52]}  Bb7 {[%clk 0:02:44]} 11. Rc1 {[%clk 0:02:51]}  Rc8 {[%clk 0:02:43]} 12. a3 {[%clk 0:02:51]}  a6 {[%clk 0:02:43]} 13. d5 {[%clk 0:02:47]}  exd5 {[%clk 0:02:38]} 14. exd5 {[%clk 0:02:46]}  Na5 {[%clk 0:02:22]} 15. Na4 {[%clk 0:02:36]}  Nxd5 {[%clk 0:02:07]} 16. b4 {[%clk 0:02:21]}  Nxe3 {[%clk 0:02:07]} 17. fxe3 {[%clk 0:02:03]}  Nc6 {[%clk 0:02:03]} 18. Nd4 {[%clk 0:01:57]}  Nxd4 {[%clk 0:02:02]} 19. Qxd4 {[%clk 0:01:54]}  b5 {[%clk 0:01:51]} 20. Nb6 {[%clk 0:01:50]}  Rxc1 {[%clk 0:01:36]} 21. Rxc1 {[%clk 0:01:44]}  Bf6 {[%clk 0:01:34]} 22. Qf4 {[%clk 0:01:33]}  Qxb6 {[%clk 0:01:32]} 23. Bd3 {[%clk 0:01:31]}  Re8 {[%clk 0:01:18]} 24. Re1 {[%clk 0:01:15]}  Qc6 {[%clk 0:01:04]} 25. e4 {[%clk 0:01:07]}  Bd4+ {[%clk 0:00:58]} 26. Kh1 {[%clk 0:01:06]}  Qc3 {[%clk 0:00:39]} 27. Rf1 {[%clk 0:00:59]}  Rf8 {[%clk 0:00:32]} 28. Be2 {[%clk 0:00:55]}  Be5 {[%clk 0:00:26]} 29. Qh4 {[%clk 0:00:50]}  Qxa3 {[%clk 0:00:19]} 30. Bg4 {[%clk 0:00:48]}  Qxb4 {[%clk 0:00:18]} 31. Qe7 {[%clk 0:00:47]}  Qxe4 {[%clk 0:00:16]} 32. Bf3 {[%clk 0:00:46]}  Qd3 {[%clk 0:00:14]} 33. Rd1 {[%clk 0:00:44]}  Bxf3 {[%clk 0:00:10]} 34. Rxd3 {[%clk 0:00:43]}  Be4 {[%clk 0:00:10]} 35. Re3 {[%clk 0:00:41]}  Bd5 {[%clk 0:00:09]} 36. Rxe5 {[%clk 0:00:34]}  dxe5 {[%clk 0:00:09]} 37. Qxe5 {[%clk 0:00:34]}  Be6 {[%clk 0:00:09]} 38. Qd6 {[%clk 0:00:33]}  b4 {[%clk 0:00:09]} 39. Qxb4 {[%clk 0:00:33]}  g6 {[%clk 0:00:09]} 40. Qa5 {[%clk 0:00:33]}  Re8 {[%clk 0:00:09]} 41. Qxa6 {[%clk 0:00:32]}  Kg7 {[%clk 0:00:09]} 42. g4 {[%clk 0:00:32]}  Bd5+ {[%clk 0:00:09]} 43. Kh2 {[%clk 0:00:32]}  Re3 {[%clk 0:00:09]} 44. Qa1+ {[%clk 0:00:31]}  f6 {[%clk 0:00:08]} 45. Qd4 {[%clk 0:00:31]}  Re2+ {[%clk 0:00:08]} 46. Kg1 {[%clk 0:00:30]}  Bf3 {[%clk 0:00:08]} 47. Qd3 {[%clk 0:00:20]}  Rg2+ {[%clk 0:00:05]} 48. Kf1 {[%clk 0:00:14]}  Bc6 {[%clk 0:00:03]} 49. Qd6 {[%clk 0:00:13]}  Bb5+ {[%clk 0:00:03]} 50. Kxg2 {[%clk 0:00:12]} 1-0


[Site "https://www.chess.com"]

[Event "Titled Tuesday Blitz February 21 Early 2023"]
[White "SulfatoFerroso"]
[Black "Ardila, Oscar Humberto"]
[BlackFideId "4404742"]
[WhiteElo "1776"]
[BlackElo "1982"]
[Result "1-0"]
[Round "09"]
[TimeControl "180+2"]
[Date "2023.02.21"]
[WhiteClock "0:00:05"]
[BlackClock "0:00:51"]

1. e4 {[%clk 0:02:55]}  e5 {[%clk 0:02:58]} 2. Nf3 {[%clk 0:02:53]}  Nf6 {[%clk 0:02:58]} 3. Nxe5 {[%clk 0:02:46]}  d6 {[%clk 0:02:58]} 4. Nf3 {[%clk 0:02:45]}  Nxe4 {[%clk 0:02:59]} 5. d4 {[%clk 0:02:45]}  Be7 {[%clk 0:02:58]} 6. Bd3 {[%clk 0:02:44]}  Nf6 {[%clk 0:02:58]} 7. c4 {[%clk 0:02:25]}  Bg4 {[%clk 0:02:57]} 8. h3 {[%clk 0:02:18]}  Bh5 {[%clk 0:02:57]} 9. Nbd2 {[%clk 0:02:11]}  O-O {[%clk 0:02:56]} 10. Qb3 {[%clk 0:02:07]}  Qc8 {[%clk 0:02:51]} 11. O-O {[%clk 0:02:04]}  Nc6 {[%clk 0:02:50]} 12. d5 {[%clk 0:01:58]}  Ne5 {[%clk 0:02:47]} 13. Nxe5 {[%clk 0:01:57]}  dxe5 {[%clk 0:02:48]} 14. Re1 {[%clk 0:01:44]}  Bd6 {[%clk 0:02:47]} 15. Qc2 {[%clk 0:01:40]}  b6 {[%clk 0:02:40]} 16. b3 {[%clk 0:01:36]}  Re8 {[%clk 0:02:39]} 17. Bb2 {[%clk 0:01:35]}  Qd7 {[%clk 0:02:36]} 18. Bf5 {[%clk 0:01:00]}  Qe7 {[%clk 0:02:34]} 19. f4 {[%clk 0:00:47]}  Bg6 {[%clk 0:01:43]} 20. fxe5 {[%clk 0:00:36]}  Bc5+ {[%clk 0:01:43]} 21. Kh1 {[%clk 0:00:33]}  Nh5 {[%clk 0:01:42]} 22. Bxg6 {[%clk 0:00:22]}  hxg6 {[%clk 0:01:40]} 23. Qd3 {[%clk 0:00:18]}  Qh4 {[%clk 0:01:35]} 24. Nf3 {[%clk 0:00:17]}  Qg3 {[%clk 0:01:30]} 25. e6 {[%clk 0:00:15]}  f5 {[%clk 0:01:26]} 26. Be5 {[%clk 0:00:12]}  Bd6 {[%clk 0:01:20]} 27. Bxg3 {[%clk 0:00:11]}  Nxg3+ {[%clk 0:01:19]} 28. Kg1 {[%clk 0:00:12]}  Bc5+ {[%clk 0:01:17]} 29. Kh2 {[%clk 0:00:11]}  Bd6 {[%clk 0:01:17]} 30. Ne5 {[%clk 0:00:11]}  Nh5 {[%clk 0:01:15]} 31. g4 {[%clk 0:00:10]}  fxg4 {[%clk 0:01:12]} 32. hxg4 {[%clk 0:00:10]}  Nf6 {[%clk 0:01:13]} 33. Kh3 {[%clk 0:00:08]}  Nh7 {[%clk 0:01:06]} 34. Nxg6 {[%clk 0:00:08]}  Ng5+ {[%clk 0:01:05]} 35. Kh4 {[%clk 0:00:08]}  Nh7 {[%clk 0:01:05]} 36. Rf1 {[%clk 0:00:05]}  c6 {[%clk 0:01:04]} 37. Rf7 {[%clk 0:00:05]}  cxd5 {[%clk 0:01:01]} 38. cxd5 {[%clk 0:00:04]}  Rac8 {[%clk 0:01:00]} 39. Qd4 {[%clk 0:00:04]}  Nf6 {[%clk 0:00:57]} 40. Rxf6 {[%clk 0:00:04]}  gxf6 {[%clk 0:00:57]} 41. Qxf6 {[%clk 0:00:05]}  Rc7 {[%clk 0:00:51]} 42. Qh8# {[%clk 0:00:05]} 1-0


[Site "https://www.chess.com"]

[Event "Titled Tuesday Blitz February 21 Early 2023"]
[White "Orzech, Dominik"]
[Black "Better_Chess_Faster"]
[WhiteFideId "1115065"]
[WhiteElo "2308"]
[BlackElo "1968"]
[Result "1/2-1/2"]
[Round "09"]
[TimeControl "180+2"]
[Date "2023.02.21"]
[WhiteClock "0:01:54"]
[BlackClock "0:02:04"]

1. e4 {[%clk 0:03:00]}  Nf6 {[%clk 0:02:58]} 2. Nc3 {[%clk 0:02:49]}  e5 {[%clk 0:02:57]} 3. Nf3 {[%clk 0:02:47]}  Nc6 {[%clk 0:02:56]} 4. Bc4 {[%clk 0:02:47]}  Nxe4 {[%clk 0:02:54]} 5. Bxf7+ {[%clk 0:02:35]}  Kxf7 {[%clk 0:02:54]} 6. Nxe4 {[%clk 0:02:33]}  d5 {[%clk 0:02:53]} 7. Nc3 {[%clk 0:02:22]}  d4 {[%clk 0:02:46]} 8. Ne4 {[%clk 0:02:18]}  Bf5 {[%clk 0:02:44]} 9. d3 {[%clk 0:02:17]}  h6 {[%clk 0:02:40]} 10. O-O {[%clk 0:02:13]}  Bd6 {[%clk 0:02:40]} 11. Bd2 {[%clk 0:02:11]}  Rf8 {[%clk 0:02:39]} 12. c3 {[%clk 0:02:09]}  Kg8 {[%clk 0:02:36]} 13. Qb3+ {[%clk 0:02:05]}  Kh7 {[%clk 0:02:32]} 14. Qxb7 {[%clk 0:02:04]}  Qd7 {[%clk 0:02:25]} 15. Qb3 {[%clk 0:02:03]}  Rab8 {[%clk 0:02:22]} 16. Qc2 {[%clk 0:02:03]}  Bxe4 {[%clk 0:02:16]} 17. dxe4 {[%clk 0:02:03]}  Rxf3 {[%clk 0:02:15]} 18. gxf3 {[%clk 0:02:01]}  Qh3 {[%clk 0:02:06]} 19. Kh1 {[%clk 0:01:57]}  Qxf3+ {[%clk 0:02:05]} 20. Kg1 {[%clk 0:01:56]}  Qg4+ {[%clk 0:02:04]} 21. Kh1 {[%clk 0:01:55]}  Qf3+ {[%clk 0:02:04]} 22. Kg1 {[%clk 0:01:55]}  Qg4+ {[%clk 0:02:05]} 23. Kh1 {[%clk 0:01:54]}  Qf3+ {[%clk 0:02:04]} 1/2-1/2


[Site "https://www.chess.com"]

[Event "Titled Tuesday Blitz February 21 Early 2023"]
[White "Seifert, Henryk"]
[Black "Winkels, Marcel"]
[WhiteFideId "1100963"]
[BlackFideId "1003887"]
[WhiteElo "2106"]
[BlackElo "1960"]
[Result "0-1"]
[Round "09"]
[TimeControl "180+2"]
[Date "2023.02.21"]
[WhiteClock "0:00:02"]
[BlackClock "0:00:38"]

1. e4 {[%clk 0:03:00]}  c5 {[%clk 0:02:57]} 2. Nf3 {[%clk 0:02:59]}  e6 {[%clk 0:02:57]} 3. c3 {[%clk 0:02:59]}  Nf6 {[%clk 0:02:54]} 4. e5 {[%clk 0:02:58]}  Nd5 {[%clk 0:02:55]} 5. d4 {[%clk 0:02:58]}  cxd4 {[%clk 0:02:55]} 6. cxd4 {[%clk 0:02:59]}  b6 {[%clk 0:02:55]} 7. Bd3 {[%clk 0:02:55]}  Bb7 {[%clk 0:02:53]} 8. Nc3 {[%clk 0:02:51]}  Nxc3 {[%clk 0:02:52]} 9. bxc3 {[%clk 0:02:52]}  Qc7 {[%clk 0:02:52]} 10. O-O {[%clk 0:02:42]}  d6 {[%clk 0:02:41]} 11. Bf4 {[%clk 0:02:39]}  Nd7 {[%clk 0:02:40]} 12. Rc1 {[%clk 0:02:24]}  Be7 {[%clk 0:02:36]} 13. Re1 {[%clk 0:02:08]}  h6 {[%clk 0:02:26]} 14. a4 {[%clk 0:01:59]}  O-O {[%clk 0:02:18]} 15. Bb1 {[%clk 0:01:56]}  Bxf3 {[%clk 0:01:56]} 16. Qxf3 {[%clk 0:01:54]}  dxe5 {[%clk 0:01:55]} 17. dxe5 {[%clk 0:01:49]}  Nc5 {[%clk 0:01:51]} 18. Qg3 {[%clk 0:01:34]}  Kh8 {[%clk 0:01:46]} 19. Qh3 {[%clk 0:01:20]}  f5 {[%clk 0:01:22]} 20. Bxh6 {[%clk 0:00:56]}  gxh6 {[%clk 0:01:14]} 21. Qxh6+ {[%clk 0:00:55]}  Kg8 {[%clk 0:01:14]} 22. Qg6+ {[%clk 0:00:53]}  Kh8 {[%clk 0:01:12]} 23. Re3 {[%clk 0:00:51]}  Bh4 {[%clk 0:01:05]} 24. Rh3 {[%clk 0:00:20]}  Qh7 {[%clk 0:01:04]} 25. Qxh7+ {[%clk 0:00:15]}  Kxh7 {[%clk 0:01:04]} 26. Rxh4+ {[%clk 0:00:16]}  Kg6 {[%clk 0:01:05]} 27. Rh3 {[%clk 0:00:14]}  Rad8 {[%clk 0:01:01]} 28. g4 {[%clk 0:00:13]}  Rd5 {[%clk 0:00:57]} 29. gxf5+ {[%clk 0:00:11]}  exf5 {[%clk 0:00:57]} 30. Rg3+ {[%clk 0:00:09]}  Kh6 {[%clk 0:00:56]} 31. f4 {[%clk 0:00:09]}  Rfd8 {[%clk 0:00:52]} 32. Bxf5 {[%clk 0:00:04]}  Rd1+ {[%clk 0:00:51]} 33. Rxd1 {[%clk 0:00:04]}  Rxd1+ {[%clk 0:00:51]} 34. Kg2 {[%clk 0:00:04]}  Rd2+ {[%clk 0:00:50]} 35. Kh3 {[%clk 0:00:02]}  Nxa4 {[%clk 0:00:39]} 36. Rg6+ {[%clk 0:00:02]}  Kh5 {[%clk 0:00:38]} 0-1


[Site "https://www.chess.com"]

[Event "Titled Tuesday Blitz February 21 Early 2023"]
[White "Bongo Akanga Ndjila, Barthelemy"]
[Black "Jesusesmifuerza"]
[WhiteFideId "10609431"]
[WhiteElo "1824"]
[BlackElo "2002"]
[Result "0-1"]
[Round "09"]
[TimeControl "180+2"]
[Date "2023.02.21"]
[WhiteClock "0:00:01"]
[BlackClock "0:02:22"]

1. d4 {[%clk 0:00:12]}  d5 {[%clk 0:02:58]} 2. c4 {[%clk 0:00:12]}  e6 {[%clk 0:02:59]} 3. Nc3 {[%clk 0:00:12]}  a6 {[%clk 0:02:59]} 4. cxd5 {[%clk 0:00:12]}  exd5 {[%clk 0:02:59]} 5. Nf3 {[%clk 0:00:11]}  Nf6 {[%clk 0:02:59]} 6. Bg5 {[%clk 0:00:11]}  Be6 {[%clk 0:02:59]} 7. Qc2 {[%clk 0:00:11]}  Nbd7 {[%clk 0:02:58]} 8. e3 {[%clk 0:00:12]}  h6 {[%clk 0:02:58]} 9. Bh4 {[%clk 0:00:10]}  g5 {[%clk 0:02:58]} 10. Bg3 {[%clk 0:00:09]}  Nh5 {[%clk 0:02:58]} 11. Bd3 {[%clk 0:00:09]}  c6 {[%clk 0:02:55]} 12. Ne5 {[%clk 0:00:08]}  Nxg3 {[%clk 0:02:55]} 13. hxg3 {[%clk 0:00:09]}  Nxe5 {[%clk 0:02:55]} 14. dxe5 {[%clk 0:00:09]}  g4 {[%clk 0:02:46]} 15. O-O-O {[%clk 0:00:09]}  Qc7 {[%clk 0:02:45]} 16. f4 {[%clk 0:00:08]}  gxf3 {[%clk 0:02:44]} 17. gxf3 {[%clk 0:00:08]}  Qxe5 {[%clk 0:02:44]} 18. Ne2 {[%clk 0:00:08]}  Qxe3+ {[%clk 0:02:44]} 19. Kb1 {[%clk 0:00:07]}  O-O-O {[%clk 0:02:43]} 20. Nf4 {[%clk 0:00:08]}  Qc5 {[%clk 0:02:39]} 21. Nxe6 {[%clk 0:00:08]}  Qxc2+ {[%clk 0:02:38]} 22. Bxc2 {[%clk 0:00:09]}  fxe6 {[%clk 0:02:38]} 23. Rhe1 {[%clk 0:00:08]}  Re8 {[%clk 0:02:38]} 24. f4 {[%clk 0:00:08]}  Kd7 {[%clk 0:02:37]} 25. Bb3 {[%clk 0:00:08]}  Bg7 {[%clk 0:02:36]} 26. Re2 {[%clk 0:00:07]}  Re7 {[%clk 0:02:33]} 27. Rde1 {[%clk 0:00:05]}  Rf8 {[%clk 0:02:34]} 28. Re3 {[%clk 0:00:05]}  h5 {[%clk 0:02:33]} 29. Bc2 {[%clk 0:00:04]}  h4 {[%clk 0:02:32]} 30. gxh4 {[%clk 0:00:03]}  Rxf4 {[%clk 0:02:31]} 31. h5 {[%clk 0:00:03]}  Bh6 {[%clk 0:02:31]} 32. Rh3 {[%clk 0:00:01]}  Rg7 {[%clk 0:02:23]} 33. Bg6 {[%clk 0:00:01]}  Kd6 {[%clk 0:02:22]} 0-1


[Site "https://www.chess.com"]

[Event "Titled Tuesday Blitz February 21 Early 2023"]
[White "Larina, Maria"]
[Black "Desideri, Ricardo Maruchi"]
[WhiteFideId "24113182"]
[BlackFideId "2110440"]
[WhiteElo "1948"]
[BlackElo "1959"]
[Result "1-0"]
[Round "09"]
[TimeControl "180+2"]
[Date "2023.02.21"]
[WhiteClock "0:00:02"]
[BlackClock "0:00:01"]

1. e4 {[%clk 0:03:00]}  c5 {[%clk 0:02:57]} 2. Nc3 {[%clk 0:03:00]}  d6 {[%clk 0:02:54]} 3. d4 {[%clk 0:02:59]}  cxd4 {[%clk 0:02:53]} 4. Qxd4 {[%clk 0:03:00]}  a6 {[%clk 0:02:53]} 5. b3 {[%clk 0:03:00]}  Nc6 {[%clk 0:02:52]} 6. Qd2 {[%clk 0:02:59]}  g6 {[%clk 0:02:52]} 7. Bb2 {[%clk 0:02:59]}  Bg7 {[%clk 0:02:52]} 8. O-O-O {[%clk 0:02:58]}  e6 {[%clk 0:02:48]} 9. f3 {[%clk 0:02:54]}  Bh6 {[%clk 0:02:29]} 10. f4 {[%clk 0:02:50]}  Nge7 {[%clk 0:02:19]} 11. Nd5 {[%clk 0:02:33]}  Nxd5 {[%clk 0:02:12]} 12. exd5 {[%clk 0:02:27]}  e5 {[%clk 0:01:42]} 13. Re1 {[%clk 0:01:30]}  Bxf4 {[%clk 0:01:39]} 14. Qxf4 {[%clk 0:01:27]}  O-O {[%clk 0:01:35]} 15. Qh6 {[%clk 0:01:13]}  Ne7 {[%clk 0:01:28]} 16. h4 {[%clk 0:00:44]}  Bf5 {[%clk 0:01:14]} 17. Nf3 {[%clk 0:00:28]}  Nxd5 {[%clk 0:01:11]} 18. h5 {[%clk 0:00:17]}  Rc8 {[%clk 0:01:07]} 19. Bc4 {[%clk 0:00:16]}  Nb4 {[%clk 0:00:24]} 20. Ng5 {[%clk 0:00:11]}  gxh5 {[%clk 0:00:08]} 21. Rxh5 {[%clk 0:00:07]}  Bg6 {[%clk 0:00:07]} 22. Reh1 {[%clk 0:00:06]}  Qf6 {[%clk 0:00:03]} 23. Qxh7+ {[%clk 0:00:03]}  Bxh7 {[%clk 0:00:01]} 24. Nxh7 {[%clk 0:00:02]} 1-0


[Site "https://www.chess.com"]

[Event "Titled Tuesday Blitz February 21 Early 2023"]
[White "Caruana, Fabiano"]
[Black "Nakamura, Hikaru"]
[WhiteFideId "2020009"]
[BlackFideId "2016192"]
[WhiteElo "2764"]
[BlackElo "2775"]
[Result "1-0"]
[Round "10"]
[TimeControl "180+2"]
[Date "2023.02.21"]
[WhiteClock "0:00:09"]
[BlackClock "0:00:11"]

1. e4 {[%clk 0:03:00]}  e5 {[%clk 0:02:59]} 2. Nf3 {[%clk 0:03:01]}  Nc6 {[%clk 0:02:59]} 3. Bb5 {[%clk 0:03:02]}  Nf6 {[%clk 0:02:59]} 4. d3 {[%clk 0:03:02]}  Bc5 {[%clk 0:03:00]} 5. Bxc6 {[%clk 0:03:03]}  dxc6 {[%clk 0:03:01]} 6. Nbd2 {[%clk 0:03:03]}  Be6 {[%clk 0:03:00]} 7. Qe2 {[%clk 0:03:01]}  Qd6 {[%clk 0:02:59]} 8. Ng5 {[%clk 0:02:59]}  Nd7 {[%clk 0:02:55]} 9. O-O {[%clk 0:02:52]}  Nf8 {[%clk 0:02:49]} 10. Nb3 {[%clk 0:02:51]}  Bxb3 {[%clk 0:02:40]} 11. axb3 {[%clk 0:02:50]}  f6 {[%clk 0:02:41]} 12. Nf3 {[%clk 0:02:49]}  Ne6 {[%clk 0:02:41]} 13. Kh1 {[%clk 0:02:49]}  O-O {[%clk 0:02:39]} 14. Bd2 {[%clk 0:02:43]}  Qe7 {[%clk 0:02:22]} 15. g3 {[%clk 0:02:38]}  Nd4 {[%clk 0:02:19]} 16. Nxd4 {[%clk 0:02:38]}  Bxd4 {[%clk 0:02:19]} 17. Ra2 {[%clk 0:02:26]}  Rae8 {[%clk 0:01:58]} 18. Kg2 {[%clk 0:02:24]}  f5 {[%clk 0:01:49]} 19. exf5 {[%clk 0:02:23]}  Rxf5 {[%clk 0:01:50]} 20. Be3 {[%clk 0:02:22]}  Qf7 {[%clk 0:01:43]} 21. Ra5 {[%clk 0:02:03]}  Bxe3 {[%clk 0:00:59]} 22. Qxe3 {[%clk 0:02:02]}  a6 {[%clk 0:01:00]} 23. Qe4 {[%clk 0:01:48]}  h6 {[%clk 0:00:52]} 24. f3 {[%clk 0:01:30]}  Rf6 {[%clk 0:00:33]} 25. Re1 {[%clk 0:01:23]}  Rfe6 {[%clk 0:00:29]} 26. Raa1 {[%clk 0:01:08]}  R6e7 {[%clk 0:00:25]} 27. Re3 {[%clk 0:01:07]}  Qd5 {[%clk 0:00:21]} 28. Rae1 {[%clk 0:01:07]}  Kf7 {[%clk 0:00:17]} 29. Qh7 {[%clk 0:01:06]}  Kf8 {[%clk 0:00:15]} 30. Re4 {[%clk 0:01:00]}  c5 {[%clk 0:00:15]} 31. Rf1 {[%clk 0:00:56]}  Qg8 {[%clk 0:00:15]} 32. Qg6 {[%clk 0:00:46]}  Qf7 {[%clk 0:00:14]} 33. Qg4 {[%clk 0:00:46]}  Kg8 {[%clk 0:00:15]} 34. Rfe1 {[%clk 0:00:46]}  a5 {[%clk 0:00:15]} 35. h4 {[%clk 0:00:43]}  b6 {[%clk 0:00:14]} 36. R4e3 {[%clk 0:00:41]}  Kf8 {[%clk 0:00:11]} 37. Qe4 {[%clk 0:00:41]}  Kg8 {[%clk 0:00:11]} 38. Qc6 {[%clk 0:00:40]}  Re6 {[%clk 0:00:11]} 39. Qd5 {[%clk 0:00:40]}  R6e7 {[%clk 0:00:12]} 40. Qe4 {[%clk 0:00:36]}  Kf8 {[%clk 0:00:12]} 41. Qh7 {[%clk 0:00:35]}  Qg8 {[%clk 0:00:12]} 42. Qxg8+ {[%clk 0:00:35]}  Kxg8 {[%clk 0:00:12]} 43. f4 {[%clk 0:00:36]}  Kf7 {[%clk 0:00:13]} 44. fxe5 {[%clk 0:00:34]}  Ke6 {[%clk 0:00:13]} 45. Re4 {[%clk 0:00:33]}  Rf7 {[%clk 0:00:13]} 46. Rg4 {[%clk 0:00:31]}  Ref8 {[%clk 0:00:11]} 47. Re2 {[%clk 0:00:30]}  Kf5 {[%clk 0:00:09]} 48. Kh3 {[%clk 0:00:28]}  g5 {[%clk 0:00:07]} 49. e6 {[%clk 0:00:25]}  Rf6 {[%clk 0:00:06]} 50. e7 {[%clk 0:00:23]}  Re8 {[%clk 0:00:06]} 51. Rge4 {[%clk 0:00:23]}  Kg6 {[%clk 0:00:04]} 52. hxg5 {[%clk 0:00:24]}  Kxg5 {[%clk 0:00:05]} 53. Re5+ {[%clk 0:00:20]}  Rf5 {[%clk 0:00:05]} 54. Re6 {[%clk 0:00:19]}  h5 {[%clk 0:00:04]} 55. Rc6 {[%clk 0:00:18]}  Rf7 {[%clk 0:00:03]} 56. Rxc7 {[%clk 0:00:18]}  Rf6 {[%clk 0:00:03]} 57. Rd7 {[%clk 0:00:18]}  Kg6 {[%clk 0:00:04]} 58. Rd8 {[%clk 0:00:18]}  Kf7 {[%clk 0:00:05]} 59. Rxe8 {[%clk 0:00:18]}  Kxe8 {[%clk 0:00:05]} 60. Kh4 {[%clk 0:00:18]}  Rf5 {[%clk 0:00:06]} 61. c3 {[%clk 0:00:15]}  Rd5 {[%clk 0:00:06]} 62. Re3 {[%clk 0:00:15]}  b5 {[%clk 0:00:07]} 63. c4 {[%clk 0:00:12]}  bxc4 {[%clk 0:00:08]} 64. bxc4 {[%clk 0:00:12]}  Rf5 {[%clk 0:00:08]} 65. b3 {[%clk 0:00:12]}  Rf6 {[%clk 0:00:07]} 66. Kxh5 {[%clk 0:00:12]}  Rb6 {[%clk 0:00:08]} 67. Re5 {[%clk 0:00:09]}  Rxb3 {[%clk 0:00:08]} 68. Rxc5 {[%clk 0:00:09]}  Rxd3 {[%clk 0:00:08]} 69. g4 {[%clk 0:00:09]}  a4 {[%clk 0:00:08]} 70. Ra5 {[%clk 0:00:09]}  a3 {[%clk 0:00:09]} 71. Ra7 {[%clk 0:00:10]}  Rc3 {[%clk 0:00:09]} 72. g5 {[%clk 0:00:08]}  Rxc4 {[%clk 0:00:10]} 73. Rxa3 {[%clk 0:00:08]}  Kxe7 {[%clk 0:00:11]} 74. Rf3 {[%clk 0:00:09]}  Rc8 {[%clk 0:00:09]} 75. Kh6 {[%clk 0:00:08]}  Rh8+ {[%clk 0:00:09]} 76. Kg7 {[%clk 0:00:08]}  Rh1 {[%clk 0:00:10]} 77. g6 {[%clk 0:00:09]}  Re1 {[%clk 0:00:11]} 78. Kg8 {[%clk 0:00:09]}  Rf1 {[%clk 0:00:11]} 1-0


[Site "https://www.chess.com"]

[Event "Titled Tuesday Blitz February 21 Early 2023"]
[White "Lazavik, Denis"]
[Black "Daneshvar, Bardiya"]
[WhiteFideId "13515110"]
[BlackFideId "12576468"]
[WhiteElo "2544"]
[BlackElo "2540"]
[Result "1/2-1/2"]
[Round "10"]
[TimeControl "180+2"]
[Date "2023.02.21"]
[WhiteClock "0:00:26"]
[BlackClock "0:00:54"]

1. d4 {[%clk 0:03:00]}  e6 {[%clk 0:03:00]} 2. c4 {[%clk 0:03:01]}  b6 {[%clk 0:03:00]} 3. e4 {[%clk 0:03:00]}  Bb4+ {[%clk 0:03:01]} 4. Bd2 {[%clk 0:02:59]}  Bxd2+ {[%clk 0:03:01]} 5. Nxd2 {[%clk 0:02:59]}  c5 {[%clk 0:02:56]} 6. d5 {[%clk 0:02:58]}  exd5 {[%clk 0:02:55]} 7. cxd5 {[%clk 0:02:57]}  d6 {[%clk 0:02:56]} 8. Bd3 {[%clk 0:02:51]}  Nf6 {[%clk 0:02:56]} 9. Ngf3 {[%clk 0:02:41]}  O-O {[%clk 0:02:55]} 10. h3 {[%clk 0:02:41]}  Re8 {[%clk 0:02:54]} 11. O-O {[%clk 0:02:41]}  Ba6 {[%clk 0:02:54]} 12. Bxa6 {[%clk 0:02:37]}  Nxa6 {[%clk 0:02:55]} 13. Re1 {[%clk 0:02:36]}  Nc7 {[%clk 0:02:54]} 14. Qc2 {[%clk 0:02:23]}  Nd7 {[%clk 0:02:50]} 15. Nc4 {[%clk 0:02:21]}  Qf6 {[%clk 0:02:43]} 16. Qc3 {[%clk 0:02:17]}  Qh6 {[%clk 0:02:41]} 17. a4 {[%clk 0:01:56]}  Na6 {[%clk 0:02:16]} 18. e5 {[%clk 0:01:47]}  dxe5 {[%clk 0:02:15]} 19. Nfxe5 {[%clk 0:01:48]}  Nxe5 {[%clk 0:02:15]} 20. Rxe5 {[%clk 0:01:48]}  Qf6 {[%clk 0:02:11]} 21. Rae1 {[%clk 0:01:41]}  Rxe5 {[%clk 0:02:10]} 22. Rxe5 {[%clk 0:01:41]}  Nb4 {[%clk 0:02:09]} 23. Qe3 {[%clk 0:01:38]}  Rf8 {[%clk 0:02:07]} 24. d6 {[%clk 0:01:19]}  Nc6 {[%clk 0:01:51]} 25. Re8 {[%clk 0:01:19]}  Qf5 {[%clk 0:01:49]} 26. Kh2 {[%clk 0:00:41]}  h6 {[%clk 0:01:37]} 27. b3 {[%clk 0:00:38]}  h5 {[%clk 0:01:15]} 28. h4 {[%clk 0:00:30]}  Qg4 {[%clk 0:01:00]} 29. g3 {[%clk 0:00:28]}  Qf5 {[%clk 0:00:59]} 30. Kg1 {[%clk 0:00:25]}  Qb1+ {[%clk 0:00:53]} 31. Kh2 {[%clk 0:00:25]}  Qf5 {[%clk 0:00:53]} 32. Kg1 {[%clk 0:00:25]}  Qb1+ {[%clk 0:00:53]} 33. Kh2 {[%clk 0:00:26]}  Qf5 {[%clk 0:00:54]} 1/2-1/2


[Site "https://www.chess.com"]

[Event "Titled Tuesday Blitz February 21 Early 2023"]
[White "Deac, Bogdan-Daniel"]
[Black "Le, Tuan Minh"]
[WhiteFideId "1226380"]
[BlackFideId "12401153"]
[WhiteElo "2700"]
[BlackElo "2542"]
[Result "0-1"]
[Round "10"]
[TimeControl "180+2"]
[Date "2023.02.21"]
[WhiteClock "0:00:07"]
[BlackClock "0:00:29"]

1. d4 {[%clk 0:03:00]}  d5 {[%clk 0:02:54]} 2. Nf3 {[%clk 0:02:59]}  Nf6 {[%clk 0:02:54]} 3. e3 {[%clk 0:02:59]}  c6 {[%clk 0:02:55]} 4. Bd3 {[%clk 0:02:59]}  Bg4 {[%clk 0:02:55]} 5. Nbd2 {[%clk 0:02:57]}  Nbd7 {[%clk 0:02:54]} 6. h3 {[%clk 0:02:57]}  Bh5 {[%clk 0:02:54]} 7. c4 {[%clk 0:02:44]}  e6 {[%clk 0:02:54]} 8. Qc2 {[%clk 0:02:43]}  Be7 {[%clk 0:02:47]} 9. b3 {[%clk 0:02:42]}  a5 {[%clk 0:02:46]} 10. a3 {[%clk 0:02:40]}  O-O {[%clk 0:02:46]} 11. Bb2 {[%clk 0:02:40]}  Re8 {[%clk 0:02:46]} 12. Ne5 {[%clk 0:02:34]}  Bd6 {[%clk 0:02:16]} 13. O-O {[%clk 0:02:26]}  Bg6 {[%clk 0:02:11]} 14. Nxg6 {[%clk 0:02:16]}  hxg6 {[%clk 0:02:12]} 15. Rfd1 {[%clk 0:02:13]}  Qe7 {[%clk 0:02:10]} 16. Bf1 {[%clk 0:01:56]}  e5 {[%clk 0:01:42]} 17. cxd5 {[%clk 0:01:28]}  cxd5 {[%clk 0:01:41]} 18. Qd3 {[%clk 0:01:28]}  e4 {[%clk 0:01:37]} 19. Qb5 {[%clk 0:01:27]}  g5 {[%clk 0:01:35]} 20. g3 {[%clk 0:01:18]}  Qe6 {[%clk 0:01:11]} 21. Rac1 {[%clk 0:01:06]}  Rab8 {[%clk 0:00:53]} 22. Qxa5 {[%clk 0:00:59]}  g6 {[%clk 0:00:53]} 23. Bc3 {[%clk 0:00:21]}  Kg7 {[%clk 0:00:45]} 24. Bb4 {[%clk 0:00:20]}  Bxb4 {[%clk 0:00:46]} 25. axb4 {[%clk 0:00:17]}  Rh8 {[%clk 0:00:46]} 26. g4 {[%clk 0:00:17]}  Rh4 {[%clk 0:00:32]} 27. Qc7 {[%clk 0:00:16]}  Rbh8 {[%clk 0:00:33]} 28. Bg2 {[%clk 0:00:09]}  Rxh3 {[%clk 0:00:31]} 29. Qxb7 {[%clk 0:00:07]}  Qxg4 {[%clk 0:00:29]} 0-1


[Site "https://www.chess.com"]